Cogmind - Beta 13 @@@ ROGUE MODE // 2024.03.19 @ 15:41:34 Player: Rocko1345 Result: Destroyed by H-66 Slayer with Heavy Assault Rifle Performance ------------- Evolutions (4) 2000 Regions Visited (9) 1800 Robots Destroyed (54) 270 Value Destroyed (1813) 1813 Prototype IDs (34) 680 Alien Tech Used (0) 0 Bonus (644) 644 TOTAL SCORE: 7207 Bonus ------- Follower Combat Kills 144 Entered Garrisons 200 Aligned with FarCom 300 Cogmind --------- Core Integrity 0/850 Matter 251/300 Energy 50/100 System Corruption 4% Temperature Cool (54) Movement Walking (135) Ox1 Location -6/Garrison Parts ------- > --- POWER (2) -------- (None) > --- PROPULSION (4) --- Armored Exoskeleton > --- UTILITY (7) ------ Armored Scrap Engine Large Storage Unit Advanced Targeting Computer Target Analyzer > --- WEAPON (2) ------- Thermal Phase Construct/C Scythe > --- INVENTORY (15) --- Improved Sensor Array Improved Signal Interpreter Authchip [R/Combat] Authchip [R/Combat] Authchip [R/Combat] Authchip [R/Combat] Authchip [Propulsion] Authchip [Device] Authchip [Storage] Authchip [Weapon] Remote Datajack Peak State ------------ > --- POWER ------------ Ion-Fission Engine > --- PROPULSION ------- Flying Fortress v7 > --- UTILITY ---------- Armored Scrap Engine Large Storage Unit Compact Battery Improved Hacking Suite > --- WEAPON ----------- Heavy Missile Launcher Thermal Phase Construct/C > --- INVENTORY -------- Authchip [R/Combat] Authchip [R/Combat] Authchip [R/Combat] Authchip [R/Combat] Authchip [Propulsion] Authchip [Device] Authchip [Storage] Authchip [Weapon] Heavy Missile Launcher Improved Datajack Remote Datajack [Rating: 79] Favorites ----------- Power Ion Engine Engine Ion Engine Propulsion Flying Fortress v7 Leg Constructs Wheel Wheel Flight Unit Flying Fortress v7 Utility Large Storage Unit Device Armored Scrap Engine Storage Large Storage Unit Processor Advanced Targeting Computer Hackware Hacking Suite Weapon Medium Laser Energy Gun Medium Laser Energy Cannon Constructs Ballistic Gun Assault Rifle Launcher Heavy Missile Launcher Special Weapon Remote Datajack Slashing Weapon Katana Special Melee Weapon Improved Datajack Build | -11 -10 -10 -10 -9 -8 -8 -8 -6 -6 ------- Run | Yrd Mat Min Exi Min Mat Sto Rec Fac Gar Slots Evolved 8 | . . . . . 4 . . 4 . Power 1 | . . . . . . . . 1 . Propulsion 2 | . . . . . 2 . . . . Utility 5 | . . . . . 2 . . 3 . Weapon . | . . . . . . . . . . Parts Attached 36 | 6 5 . . . 9 . 3 11 2 Power 3 | 1 1 . . . 1 . . . . Engine 3 | 1 1 . . . 1 . . . . Core . | . . . . . . . . . . Reactor . | . . . . . . . . . . Propulsion 7 | 2 2 . . . 1 . . 1 1 Treads . | . . . . . . . . . . Leg 1 | . . . . . . . . . 1 Wheel 5 | 2 2 . . . . . . 1 . Hover . | . . . . . . . . . . Flight 1 | . . . . . 1 . . . . Utility 13 | 1 2 . . . 3 . 1 6 . Device 4 | . 1 . . . . . 1 2 . Storage 3 | 1 1 . . . 1 . . . . Processor 4 | . . . . . 2 . . 2 . Hackware 2 | . . . . . . . . 2 . Protection . | . . . . . . . . . . Artifact . | . . . . . . . . . . Weapon 13 | 2 . . . . 4 . 2 4 1 Energy Gun 1 | 1 . . . . . . . . . Energy Cannon . | . . . . . . . . . . Ballistic Gun 2 | 1 . . . . 1 . . . . Ballistic Cannon . | . . . . . . . . . . Launcher 5 | . . . . . 2 . . 3 . Special Weapon 1 | . . . . . . . 1 . . Impact Weapon . | . . . . . . . . . . Slashing Weapon 2 | . . . . . . . . 1 1 Piercing Weapon . | . . . . . . . . . . Special Melee Weapon 2 | . . . . . 1 . 1 . . Unidentified Prototypes 1 | . . . . . 1 . . . . Parts Lost 20 | . 6 . . . . . . 7 7 Power 5 | . . . . . . . . 3 2 Propulsion 6 | . 4 . . . . . . . 2 Utility 5 | . 1 . . . . . . 2 2 Weapon 4 | . 1 . . . . . . 2 1 Highest Loss Streak 7 | . 3 . . . . . . 2 7 To Critical Strikes . | . . . . . . . . . . Average Slot Usage (%) 48 | . 81 42 42 42 35 54 54 49 66 Engine 9 | . 14 14 14 14 9 9 9 3 3 Wheel 3 | . 26 . . . . . . 5 3 Flight 2 | . . . . . 9 9 9 1 . Device 4 | . 7 . . . . . 8 9 11 Storage 12 | . 14 14 14 14 9 18 18 9 6 Processor 1 | . . . . . 2 18 . 2 13 Energy Gun 6 | . 14 14 14 14 . . 1 1 . Ballistic Gun 1 | . 4 . . . . . 3 1 . Naked Turns . | . . . . . . . . . . Heaviest Build 46 | 14 29 27 27 27 40 26 34 46 39 Greatest Support 50 | 20 20 3 3 3 50 50 50 50 29 Greatest Overweight (x) 8 | . 8 8 8 8 . . . 3 2 Average Overweight (x) 1 | . . 8 8 8 . . . . . Largest Inventory Capacity 15 | 8 15 15 15 15 15 15 15 15 15 Average Capacity 14 | 6 14 15 15 15 15 15 15 15 15 Most Carried 15 | 2 2 2 6 6 5 5 11 15 12 Average Carried 7 | . 1 2 4 6 3 5 10 12 11 Final Capacity 15 | 8 15 15 15 15 15 15 15 15 15 Final Carried 12 | . 2 2 6 6 5 5 11 12 11 Scrap Engine Consumption 86 | . . . . . . . 32 54 . Constructs Created 6 | . . . . . . . 1 5 . Constructs Modified 22 | . . . . . . . 1 21 . Class Distribution -------------------- 86% | Mutant 7% | Construct 5% | Commander-Mutant Dominant Class ---------------- Mutant | -10/Materials Mutant | -10/Mines Mutant | -10/Exiles Mutant | -9/Mines Mutant | -8/Materials Mutant | -8/Storage Mutant | -8/Recycling Mutant | -6/Factory Mutant | -6/Garrison Resources | -11 -10 -10 -10 -9 -8 -8 -8 -6 -6 ----------- Run | Yrd Mat Min Exi Min Mat Sto Rec Fac Gar Matter Collected 1286 | 164 192 . . . . . 470 460 . Remotely . | . . . . . . . . . . Salvage Created 1843 | . 464 . . . 122 . 149 861 247 Parts 85 | . 35 . . . 5 . 4 37 4 Haulers Intercepted 1 | . . . . . . . . 1 . Recyclers Shooed 2 | . 1 . . . . . . 1 . Parts Field Recycled . | . . . . . . . . . . Retrieved Matter . | . . . . . . . . . . Parts Self-Destructed . | . . . . . . . . . . Prevented . | . . . . . . . . . . Kills | -11 -10 -10 -10 -9 -8 -8 -8 -6 -6 ------- Run | Yrd Mat Min Exi Min Mat Sto Rec Fac Gar Combat Hostiles Destroyed 40 | . 15 . . . 2 . 4 15 4 Melee 5 | . . . . . . . . 1 4 Guns 21 | . 15 . . . . . 4 2 . Cannons 1 | . . . . . . . . 1 . AOE 12 | . . . . . 2 . . 10 . Classes Destroyed 13 | . 5 . . . 4 . 2 1 1 Worker 3 | . . . . . 2 . . 1 . Builder 3 | . 1 . . . . . . 2 . Hauler 1 | . . . . . . . . 1 . Recycler 2 | . . . . . 1 . . 1 . Watcher 5 | . 2 . . . 1 . . 2 . Swarmer 9 | . 9 . . . . . . . . Grunt 20 | . 5 . . . . . 2 10 3 Duelist 1 | . . . . . . . . . 1 Protector 1 | . . . . . . . 1 . . Sentry 2 | . . . . . 1 . . 1 . Hunter 1 | . . . . . 1 . . . . Programmer 5 | . . . . . . . 1 4 . Subdweller 1 | . 1 . . . . . . . . Best Kill Streak 15 | . 15 . . . 3 . 2 5 3 Combat Bots Only 7 | . 7 . . . 1 . 2 4 3 Max Kills in Single Turn 2 | . 2 . . . 1 . 1 2 1 Gunslinging 1 | . 1 . . . . . . . . Exploded 2 | . . . . . 1 . . 2 . Melee 1 | . . . . . . . . 1 1 Uniques/NPCs Destroyed . | . . . . . . . . . . Combat | -11 -10 -10 -10 -9 -8 -8 -8 -6 -6 -------- Run | Yrd Mat Min Exi Min Mat Sto Rec Fac Gar Hostile Shots Fired 468 | . 83 . . . 6 2 44 193 140 Missed 137 | . 26 . . . 3 . 23 67 18 Damage Taken 5666 | . 676 . . . 47 32 353 2165 2393 Core 1077 | . 175 . . . . . 46 288 568 Absorbed by Shields . | . . . . . . . . . . Regen/Repaired (Parts) 670 | . . . . . . . 75 595 . Core Remaining (%) 73 | 100 . . . 30 . . 91 . . Volleys Fired 233 | . 63 4 . . 6 . 50 91 19 Largest 2 | . 2 1 . . 2 . 1 1 1 Hottest 81 | . 70 50 . . 78 . 55 81 81 Shots Fired 261 | . 85 4 . . 12 . 50 91 19 Gun 173 | . 85 4 . . . . 30 54 . Cannon 40 | . . . . . . . . 21 19 Launcher 28 | . . . . . 12 . . 16 . Special 20 | . . . . . . . 20 . . Kinetic 103 | . 22 . . . . . 30 51 . Thermal 110 | . 63 4 . . . . . 24 19 Explosive 28 | . . . . . 12 . . 16 . Electromagnetic . | . . . . . . . . . . Robot Hit Streak 14 | . 9 3 . . 6 . 14 14 13 Robot Miss Streak 4 | . 3 1 . . 2 . 4 3 1 Penetration Max 1 | . . . . . . . . 1 . Secondary Targets 2 | . 2 . . . . . . . . Max Gunslinging Chain 1 | . 1 . . . . . . . . Shots Hit Robots 200 | . 61 3 . . 10 . 36 62 28 Core Hits 103 | . 27 1 . . 10 . 4 49 12 Critical Kills 1 | . . . . . . . . 1 . Critical Parts Destroyed . | . . . . . . . . . . Critical Strikes 9 | . 4 . . . . . . 2 3 Burn 4 | . 4 . . . . . . . . Meltdown 1 | . . . . . . . . 1 . Blast 1 | . . . . . . . . 1 . Sever 3 | . . . . . . . . . 3 Melee Attacks 32 | . . . . . 3 . 4 8 17 Impact . | . . . . . . . . . . Slashing 25 | . . . . . . . . 8 17 Piercing . | . . . . . . . . . . Sneak Attacks 8 | . . . . . . . 4 4 . Combat Hostiles 4 | . . . . . . . 4 . . Follow-up Attacks . | . . . . . . . . . . Damage Inflicted 4990 | . 784 39 . . 612 . 326 2745 484 Guns 1900 | . 784 39 . . . . 326 751 . Cannons 460 | . . . . . . . . 270 190 Explosions 2007 | . . . . . 612 . . 1395 . Melee 623 | . . . . . . . . 329 294 Ramming . | . . . . . . . . . . Kinetic 1205 | . 181 . . . . . 326 698 . Thermal 1155 | . 603 39 . . . . . 323 190 Explosive 2007 | . . . . . 612 . . 1395 . Electromagnetic . | . . . . . . . . . . Impact . | . . . . . . . . . . Slashing 623 | . . . . . . . . 329 294 Piercing . | . . . . . . . . . . Highest Corruption 6 | . . . . . 1 1 1 6 4 Average Corruption 2 | . . . . . 1 1 1 3 4 Corruption Purged 5 | . . . . . . . . 5 . Corruption Blocked . | . . . . . . . . . . Effects 43 | . . . . . 2 1 4 31 5 Message Errors 13 | . . . . . . . 1 11 1 Matter Fused 9 | . . . . . 2 . 1 4 2 Heat Flow Errors 5 | . . . . . . 1 . 3 1 Energy Discharges 3 | . . . . . . . 1 2 . Data Loss (minor) 8 | . . . . . . . 1 6 1 Data Loss (major) 2 | . . . . . . . . 2 . Misfires 1 | . . . . . . . . 1 . Alerts 1 | . . . . . . . . 1 . Weapon Failures 1 | . . . . . . . . 1 . Overload Shots . | . . . . . . . . . . Overflow Damage 70 | . . . . . 19 . . 51 . Projectiles . | . . . . . . . . . . Explosions 34 | . . . . . 19 . . 15 . Melee 36 | . . . . . . . . 36 . Knockbacks . | . . . . . . . . . . Impact . | . . . . . . . . . . Kinetic . | . . . . . . . . . . Secondary . | . . . . . . . . . . Self-Inflicted Damage 240 | . . . . . . . . 240 . Shots 6 | . . . . . . . . 6 . Rammed . | . . . . . . . . . . Targets Rammed . | . . . . . . . . . . Kicked . | . . . . . . . . . . Crushed . | . . . . . . . . . . Highest Temperature 333 | . 222 40 . . 333 263 330 325 251 Average Temperature 111 | . 52 22 . . 88 204 160 136 64 Received Heat Transfer 1647 | . 249 . . . 9 9 162 489 729 Effects 4 | . . . . . . . 1 3 . Energy Bleed 1 | . . . . . . . . 1 . Interference 2 | . . . . . . . . 2 . Short Circuit 1 | . . . . . . . 1 . . Siege Activations . | . . . . . . . . . . Robots Corrupted . | . . . . . . . . . . Combat Hostiles . | . . . . . . . . . . Parts Fried . | . . . . . . . . . . Impact Corruptions . | . . . . . . . . . . Robots Melted 1 | . . . . . . . . 1 . Combat Hostiles 1 | . . . . . . . . 1 . Parts Melted 7 | . 3 . . . . . . 2 2 Heat Transferred 3541 | . 2072 111 . . . . . 655 703 Parts Sabotaged . | . . . . . . . . . . Parts Stolen . | . . . . . . . . . . Parts Stripped . | . . . . . . . . . . Power Chain Reactions . | . . . . . . . . . . Alert | -11 -10 -10 -10 -9 -8 -8 -8 -6 -6 ------- Run | Yrd Mat Min Exi Min Mat Sto Rec Fac Gar Peak Influence 374 | . 374 55 . . 228 111 171 183 68 Initial 96 | . . 55 . . . 96 43 14 28 Average 68 | . 202 43 . . 38 97 60 62 37 Maximum Alert Level 1 | . 1 . . . 1 . . . . Low Security (%) 94 | 100 56 100 . 100 93 100 100 100 100 Level 1 5 | . 43 . . . 6 . . . . Level 2 . | . . . . . . . . . . Level 3 . | . . . . . . . . . . Level 4 . | . . . . . . . . . . Level 5 . | . . . . . . . . . . High Security . | . . . . . . . . . . Max Security . | . . . . . . . . . . Squads Dispatched 10 | . 4 . . . 1 . . 5 . Investigation 4 | . 3 . . . 1 . . . . Extermination 4 | . . . . . . . . 4 . Reinforcement 2 | . 1 . . . . . . 1 . Assault . | . . . . . . . . . . Garrison . | . . . . . . . . . . Intercept . | . . . . . . . . . . Searches Triggered . | . . . . . . . . . . Construction Impeded 1 | . . . . . . . . 1 . Haulers Reinforced . | . . . . . . . . . . Active Scanning Responses . | . . . . . . . . . . Cargo Convoy Interrupts . | . . . . . . . . . . Stealth | -11 -10 -10 -10 -9 -8 -8 -8 -6 -6 --------- Run | Yrd Mat Min Exi Min Mat Sto Rec Fac Gar Distress Signals 1 | . 1 . . . . . . . . Communications Jammed . | . . . . . . . . . . Distress Signals . | . . . . . . . . . . Times Spotted 59 | . 23 . . . 4 1 8 17 6 Peak Tracking Total 7 | . 7 . . . 1 1 5 4 5 Tactical Retreats 2 | . 1 . . . . . . 1 . Traps | -11 -10 -10 -10 -9 -8 -8 -8 -6 -6 ------- Run | Yrd Mat Min Exi Min Mat Sto Rec Fac Gar Traps Triggered 7 | . 2 . . . 1 1 . 3 . Indirectly . | . . . . . . . . . . Trap Hack Attempts 21 | . . . . . 21 . . . . Triggered . | . . . . . . . . . . Disarmed 1 | . . . . . 1 . . . . Reprogrammed 2 | . . . . . 2 . . . . Reused . | . . . . . . . . . . Traps Extracted . | . . . . . . . . . . Installed . | . . . . . . . . . . Triggered . | . . . . . . . . . . Machines | -11 -10 -10 -10 -9 -8 -8 -8 -6 -6 ---------- Run | Yrd Mat Min Exi Min Mat Sto Rec Fac Gar Machines Disabled 5 | . . . . . 2 . . 3 . Max in Single Turn 1 | . . . . . 1 . . 1 . Machines Repaired . | . . . . . . . . . . Machines Dismantled . | . . . . . . . . . . Machines Sabotaged . | . . . . . . . . . . Overloaded Fab Kills . | . . . . . . . . . . Hacking | -11 -10 -10 -10 -9 -8 -8 -8 -6 -6 --------- Run | Yrd Mat Min Exi Min Mat Sto Rec Fac Gar Machines Accessed 27 | . 3 . 4 . 6 . 9 5 . Terminals 14 | . 2 . . . 4 . 6 2 . Fabricators 1 | . . . . . . . . 1 . Repair Stations . | . . . . . . . . . . Recycling Units 7 | . 1 . . . 2 . 3 1 . Scanalyzers . | . . . . . . . . . . Garrison Access 1 | . . . . . . . . 1 . Total Hacks 93 | . 10 . 22 . 18 . 32 11 . Successful 57 | . 2 . 22 . 11 . 16 6 . Failed 36 | . 8 . . . 7 . 16 5 . Catastrophic 6 | . 2 . . . . . 2 2 . Database Lockouts . | . . . . . . . . . . Manual 28 | . . . 1 . 8 2 13 4 . Terminals 49 | . 6 . . . 15 . 22 6 . Fabricators 2 | . . . . . . . . 2 . Repair Stations . | . . . . . . . . . . Recycling Units 18 | . 4 . . . 3 . 10 1 . Scanalyzers . | . . . . . . . . . . Garrison Access 2 | . . . . . . . . 2 . Terminal Hacks 35 | . 1 . 22 . 4 . 7 1 . Record 21 | . . . 21 . . . . . . Part Schematic 4 | . . . . . . . 4 . . Prototype ID Bank 3 | . 1 . . . 2 . . . . Terminal Index 2 | . . . . . . . 1 1 . Locate Traps 1 | . . . . . 1 . . . . Hauler Manifests 1 | . . . . . . . 1 . . Zone Layout 2 | . . . . . 1 . 1 . . Derelict Proto ID Bank 1 | . . . 1 . . . . . . Fabricator Hacks 1 | . . . . . . . . 1 . Load Schematic 1 | . . . . . . . . 1 . Repair Station Hacks . | . . . . . . . . . . Recycling Unit Hacks 10 | . 1 . . . 3 . 5 1 . Report Inventory 7 | . 1 . . . 2 . 3 1 . Retrieve Components 3 | . . . . . 1 . 2 . . Scanalyzer . | . . . . . . . . . . Garrison Access Hacks 1 | . . . . . . . . 1 . Unlock Access 1 | . . . . . . . . 1 . Unauthorized Hacks 10 | . . . . . 4 . 4 2 . Terminals 9 | . . . . . 4 . 3 2 . Assimilate 1 | . . . . . . . . 1 . Botnet 7 | . . . . . 3 . 3 1 . Operators 1 | . . . . . 1 . . . . Fabricators . | . . . . . . . . . . Repair Stations . | . . . . . . . . . . Recycling Units 1 | . . . . . . . 1 . . Monitor 1 | . . . . . . . 1 . . Scanalyzers . | . . . . . . . . . . Garrison Access . | . . . . . . . . . . Data Cores Recovered . | . . . . . . . . . . Used . | . . . . . . . . . . Hacking Detections 20 | . 3 . . . 5 . 8 4 . Full Trace Events 2 | . 1 . . . 1 . . . . Feedback Events . | . . . . . . . . . . Feedback Blocked . | . . . . . . . . . . Robot Schematics Acquired . | . . . . . . . . . . Robots Built . | . . . . . . . . . . Authchips . | . . . . . . . . . . Time . | . . . . . . . . . . Total Robot Build Rating . | . . . . . . . . . . Part Schematics Acquired 4 | . . . . . . . 4 . . Parts Built . | . . . . . . . . . . Authchips . | . . . . . . . . . . Time . | . . . . . . . . . . Total Part Build Rating . | . . . . . . . . . . Parts Repaired . | . . . . . . . . . . Time . | . . . . . . . . . . Parts Recycled . | . . . . . . . . . . Recycled Matter . | . . . . . . . . . . Retrieved Matter . | . . . . . . . . . . Retrieved Components 14 | . . . . . 2 . 12 . . Parts Scanalyzed . | . . . . . . . . . . Part Schematics Acquired . | . . . . . . . . . . Parts Damaged . | . . . . . . . . . . Bothacking | -11 -10 -10 -10 -9 -8 -8 -8 -6 -6 ------------ Run | Yrd Mat Min Exi Min Mat Sto Rec Fac Gar Used RIF Installer . | . . . . . . . . . . Robots Hacked 1 | . . . . . 1 . . . . Non-combat 1 | . . . . . 1 . . . . Combat . | . . . . . . . . . . Robot Hacks Applied 1 | . . . . . 1 . . . . parse_system 1 | . . . . . 1 . . . . Relay Couplers Released . | . . . . . . . . . . Fabnet Peak Effective % . | . . . . . . . . . . Robots Rewired 10 | . . . . . . . 10 . . Allies Hacked . | . . . . . . . . . . Hacks Repelled . | . . . . . . . . . . Allies | -11 -10 -10 -10 -9 -8 -8 -8 -6 -6 -------- Run | Yrd Mat Min Exi Min Mat Sto Rec Fac Gar Total Allies 10 | . . . . . . . 10 . . Largest Group 8 | . . . . . . . 8 3 . Highest-Rated Group 133 | . . . . . . . 133 40 . Highest-Rated Ally 34 | . . . . . . . 34 15 . Total Orders 2 | . . . . . . . 1 1 . STAY 1 | . . . . . . . . 1 . DROP 1 | . . . . . . . 1 . . Ally Attacks 15 | . . . . . . . 12 3 . Total Damage 590 | . . . . . . . 515 75 . Kills 7 | . . . . . . . 6 1 . Allies Corrupted . | . . . . . . . . . . Allies Melted . | . . . . . . . . . . Intel | -11 -10 -10 -10 -9 -8 -8 -8 -6 -6 ------- Run | Yrd Mat Min Exi Min Mat Sto Rec Fac Gar Robot Analysis Total . | . . . . . . . . . . Derelict Logs Recovered . | . . . . . . . . . . Drone Launches . | . . . . . . . . . . Drone Recoveries . | . . . . . . . . . . Exploration | -11 -10 -10 -10 -9 -8 -8 -8 -6 -6 ------------- Run | Yrd Mat Min Exi Min Mat Sto Rec Fac Gar Turns Passed 7700 | 62 548 499 2191 221 652 55 1016 2326 130 Spaces Moved 5137 | 72 381 110 485 50 491 103 1684 1722 39 Core 671 | 24 2 110 485 50 . . . . . Treads . | . . . . . . . . . . Legs 19 | . . . . . . . . 14 5 Wheels 1605 | 48 379 . . . . . . 1144 34 Hover . | . . . . . . . . . . Flight 2842 | . . . . . 491 103 1684 564 . Fastest Speed 50 | 50 80 450 450 450 50 50 50 50 99 Average Speed 119 | 70 94 450 450 450 50 50 50 95 117 Slowest Speed 450 | 80 450 450 450 450 50 50 50 146 192 Overloaded Moves . | . . . . . . . . . . Propulsion Burnouts . | . . . . . . . . . . Robots Hopped 19 | . . . . . 1 . 18 . . Cave-ins Triggered . | . . . . . . . . . . Exploration Rate (%) 36 | 3 43 26 90 17 29 21 99 31 5 Regions Visited 9 Branch Regions 5 Pre-discovered Areas 1 | . . . 1 . . . . . . Known Exits Taken 1 | . . . . . . . . 1 . Unknown Exits Taken 8 | 1 1 1 1 1 1 1 1 . . Scrap Searched . | . . . . . . . . . . Spaces Dug 2 | . . . . . . . . 2 . Terrain Destroyed 196 | . . . . . 76 . 5 115 . Melee 2 | . . . . . . . . 2 . Projectile 5 | . . . . . . . 5 . . AOE 189 | . . . . . 76 . . 113 . Terrain Rammed . | . . . . . . . . . . Walls Destroyed . | . . . . . . . . . . Machines Disabled . | . . . . . . . . . . Actions | -11 -10 -10 -10 -9 -8 -8 -8 -6 -6 --------- Run | Yrd Mat Min Exi Min Mat Sto Rec Fac Gar Total 6398 | 83 488 113 497 49 884 105 1801 2300 78 Wait 888 | . 33 . . . 339 . 63 453 . Move 5091 | 71 380 109 484 49 488 102 1648 1721 39 Hop 18 | . . . . . 1 . 17 . . Pick Up 46 | 6 6 . 1 . 10 . 11 11 1 Fast Attach . | . . . . . . . . . . Attach 30 | 6 3 . . . 7 . 2 10 2 Detach 4 | . . . . . 2 . . 2 . Swap 6 | . 2 . . . 2 . 1 1 . Drop 14 | . 1 . . . 5 . 5 3 . Fire 233 | . 63 4 . . 6 . 50 91 19 Melee 32 | . . . . . 3 . 4 8 17 Ram . | . . . . . . . . . . Kick . | . . . . . . . . . . Crush . | . . . . . . . . . . Escape Stasis 3 | . . . . . . 3 . . . Rewire 12 | . . . 12 . . . . . . Trap 21 | . . . . . 21 . . . . Miscellaneous . | . . . . . . . . . . Route ------- -11/Scrapyard -10/Materials (discovered 2 exits: [*Min x2]) -10/Mines -10/Exiles -9/Mines -8/Materials -8/Storage -8/Recycling -6/Factory -6/Garrison History --------- Turn | Location | Event 3 | -11/Scrapyard | Discovered new exit (range 16) 63 | -11/Scrapyard | Entered Materials 84 | -10/Materials | Discovered new exit (range 11) 245 | -10/Materials | Destroyed 7 combat bots 303 | -10/Materials | Lost 3 parts (2n1w) 317 | -10/Materials | Build established: Mutant 500 | -10/Materials | Derelicts attacked the area 540 | -10/Materials | Discovered new exit (range 7) 600 | -10/Materials | Core integrity fell below 50% 611 | -10/Materials | Entered Mines 639 | -10/Mines | Lost 3 parts (2n1u) 1087 | -10/Mines | Deemed a non-threat by the Exiles lab entrance 1092 | -10/Mines | Discovered new exit (range 5) 1110 | -10/Mines | Entered Exiles 1223 | -10/Exiles | Met 8R-AWN 1299 | -10/Exiles | Met EX-HEX 1457 | -10/Exiles | Met EX-BIN 1529 | -10/Exiles | Aligned with FarCom system 1533 | -10/Exiles | Given EX-Vault access code 1673 | -10/Exiles | Opened EX-Vault 1718 | -10/Exiles | Found Flying Fortress v7 1966 | -10/Exiles | Warned to stay clear of 0b10 Research branches 2110 | -10/Exiles | Met EX-DEC 2155 | -10/Exiles | Learned location of Zion (-7) 2632 | -10/Exiles | Visited The Gauntlet 3261 | -10/Exiles | Discovered new exit (range 10) 3301 | -10/Exiles | Left Exiles lab with Flying Fortress v7 3301 | -10/Exiles | Entered Mines 3472 | -9/Mines | Discovered new exit (range 12) 3522 | -9/Mines | Entered Materials 3522 | -8/Materials | Evolved 4 slots: Propulsion x2, Utility x2 4123 | -8/Materials | Discovered new exit (range 16) 4174 | -8/Materials | Entered Storage 4227 | -8/Storage | Used back door to open Recycling access 4227 | -8/Storage | Discovered new exit (range 4) 4229 | -8/Storage | Entered Recycling 4239 | -8/Recycling | Found Scrap Engine 4363 | -8/Recycling | Discovered new exit (range 15) 5127 | -8/Recycling | Build established: Commander-Mutant 5245 | -8/Recycling | Entered Factory 5245 | -6/Factory | Accompanied by 3 allies 5245 | -6/Factory | Evolved 4 slots: Power x1, Utility x3 5556 | -6/Factory | Build established: Mutant 6568 | -6/Factory | Spotted B-75 Beast 7449 | -6/Factory | Build established: Construct 7561 | -6/Factory | Identified exit to Garrison 7571 | -6/Factory | Entered Garrison 7614 | -6/Garrison | Triggered checkpoint 7642 | -6/Garrison | Core integrity fell below 50% 7674 | -6/Garrison | Core integrity fell below 20% 7701 | -6/Garrison | Destroyed by H-66 Slayer with Heavy Assault Rifle Last Messages --------------- 07658_ Ion-Fission Engine destroyed. 07658_ Arm. Scrap Engine damaged due to network destabilization (-9). 07658_ Penetrated by Slug. 07662_ Acquired Carbon-fiber Leg. 07666_ G-50 Soldier Carbon-fiber Leg severed. 07669_ Critical hit (Burn: +37). 07673_ System corrupted: Matter fused (-10). 07675_ Hvy. Laser melted. 07675_ G-50 Soldier destroyed. 07675_ Slug penetrates Wall. 07675_ Penetrated by Slug. 07680_ Adv. Heat Sink destroyed. 07680_ G-50 Soldier destroyed. 07682_ Penetrated by Slug. 07682_ Hacking Suite destroyed. 07685_ Penetrated by Slug. 07688_ Slug penetrates Wall. 07691_ Carbon-fiber Leg destroyed. 07696_ Penetrated by Slug. 07701_ Slug penetrates Wall. Map ----- +----------------------------------------------------+ | | | | | | | ?????????????????????????????????????????????????? | | ?????????????????????????????????????????????????? | | ?????????????????????????????????????????????????? | | ?????????????????????????????????????????????????? | | ?????????????????????????????????????????????????? | | ?????????????????????????????????????????????????? | | ?????????????????????????????????????????????????? | | ?????????????????????????????????????????????????? | | ?????????????????????????????????????????????????? | | ?????????????????????????????????????????????????? | | ??????????????????????#######????????????????????? | | ??????????????????????# #????????????????????? | | ??????????????????????# #????????????????????? | | ??????????????????????# #????????????????????? | | ??????????????????????### #????????????????????? | | ????????????????????????# #????????????????????? | | ????????????????????????# #????????????????????? | | ????????????????????????# #????????????????????? | | ????????????????????????# #????????????????????? | | ????????????????????????# #????????????????????? | | ????????????????????????# #????????????????????? | | ????????????????????????#= =#????????????????????? | | ????????????????????????#@%!###??????????????????? | | ????????????????????????#%!% C### #??????????????? | | ????????????????????????#/% C #??????????????? | | ????????????????????????#hh %### #??????????????? | | ????????????????????????# ###??????????????????? | | ????????????????????????# #????????????????????? | | ????????????????????????# #????????????????????? | | ????????????????????????# #????????????????????? | | ????????????????????????# #????????????????????? | | ????????????????????????# #????????????????????? | | ????????????????????????# #????????????????????? | | ????????????????????????# #????????????????????? | | ???????????????????????? #????????????????????? | | ???????????????????????? #????????????????????? | | ????????????????????????# #????????????????????? | | ????????????????????????? #????????????????????? | | ????????????????????????? #????????????????????? | | ????????????????????????? ?????????????????????? | | ?????????????????????????????????????????????????? | | ?????????????????????????????????????????????????? | | ?????????????????????????????????????????????????? | | ?????????????????????????????????????????????????? | | ?????????????????????????????????????????????????? | | ?????????????????????????????????????????????????? | | ?????????????????????????????????????????????????? | +----------------------------------------------------+ Best States ------------- Heat Dissipation 56 Energy Generation 28 Energy Capacity 500 Matter Stores 300 Matter Capacity 300 Sight Range 16 Terrain Scan Density 110 Evasion (%) 60 Targeting Accuracy 8 Launcher Accuracy 20 Target Analysis 5 Offensive Hacking 12 Authchip Count 8 Item Schematics ----------------- Adv. Terrain Scanner | -8/Recycling | Hacked Great Maul | -8/Recycling | Hacked Hvy. Ion Cannon | -8/Recycling | Hacked Lgt. Deuterium Engine | -8/Recycling | Hacked Robot Schematics ------------------ None Fabricated ------------ Nothing Alien Tech Used ----------------- None Achievements -------------- None Challenges ------------ None Game ------ Seed CatalystBlastHammer Manual? 0 Play Time 00:54:51 Cumulative 189.0 hours Start 2024.03.15 @ 14:37:25 End 2024.03.19 @ 15:41:34 Sessions 3 Manual Loads 0 Difficulty Rogue Special Mode None Game No. 218 Rogue 44 Adventurer 174 Explorer 0 Win Type - Total 1 Types 1/0/0/0/0/0/0/0/0 Lore% 60 Gallery% 66 Achievement% 51 Wizard Run 0 Options --------- Layout 0 ASCII 0 Keyboard 0 Movement Numpad Keybinds 0 Fullscreen 1 Font 18/SmallcapsGlow Map View 76x50 Zoom Use 0% Tactical HUD 1 Map Filters NONE Filters NONE Steam 1 RUN: 17de7514-7067-4b0d-bdfe-40fbb49a3c43